Cogmind - Beta 15 @@@ ROGUE MODE // 2025.05.18 @ 22:59:40 Player: Wyvric Result: Self-destructed Performance ------------- Evolutions (3) 1500 Regions Visited (8) 1600 Robots Destroyed (160) 800 Value Destroyed (5858) 5858 Prototype IDs (11) 220 Alien Tech Used (0) 0 Bonus (3193) 3193 TOTAL SCORE: 13171 Bonus ------- High Alert Combat Kills 784 Follower Combat Kills 509 Entered Garrisons 400 Used RIF Installer 1500 Cogmind --------- Core Integrity 298/700 Matter 235/300 Energy 100/100 System Corruption 8% Temperature Cool (0) Movement Walking (250) Ox1 Location -7/Factory Parts ------- > --- POWER (1) -------- (None) > --- PROPULSION (4) --- Light Armored Exoskeleton Light Armored Exoskeleton > --- UTILITY (6) ------ Huge Storage Unit Relay Coupler [Grunt] (5) > --- WEAPON (2) ------- Improved Spread Laser > --- INVENTORY (25) --- Armored Treads Light Armored Exoskeleton Light Armored Exoskeleton High-capacity Storage Unit Seismic Detector Hacking Suite Relay Coupler [NC] (25) Relay Coupler [Sentry] (22) Rocket Launcher Rocket Launcher Remote Datajack Remote Datajack Heavy Hammer Peak State ------------ > --- POWER ------------ Enhanced Nuclear Core > --- PROPULSION ------- Light Armored Exoskeleton Light Armored Exoskeleton > --- UTILITY ---------- Improved Heat Sink Huge Storage Unit Hardened Heavy Armor Plating Improved Shield Generator Relay Coupler [Grunt] > --- WEAPON ----------- Shock Rifle Remote Datajack > --- INVENTORY -------- Armored Treads Light Armored Exoskeleton Light Armored Exoskeleton Light Armored Exoskeleton High-capacity Storage Unit Seismic Detector Hardened Heavy Armor Plating Hacking Suite Relay Coupler [NC] Relay Coupler [Sentry] Shock Rifle Shock Rifle Shock Rifle Improved Spread Laser Cooled Particle Cannon Rocket Launcher Rocket Launcher Rocket Launcher Heavy Hammer [Rating: 54] Favorites ----------- Power Cooled Ion Engine Engine Cooled Ion Engine Power Core Light Nuclear Core Propulsion Light Treads Treads Light Treads Leg Improved Aluminum Leg Wheel Armored Wheel Utility Light Armor Plating Device Seismic Detector Storage High-capacity Storage Unit Processor Improved Signal Interpreter Hackware Relay Coupler [Grunt] Protection Light Armor Plating Weapon Heavy Hammer Energy Gun Medium Laser Energy Cannon Cooled Particle Cannon Ballistic Gun Shotgun Launcher Grenade Launcher Special Weapon Remote Datajack Impact Weapon Heavy Hammer Special Melee Weapon Datajack Build | -11 -10 -10 -9 -9 -9 -8 -8 -7 ------- Run | Yrd Mat Min Mat Sto Gar Mat Gar Fac Slots Evolved 6 | . . . 2 . . 2 . 2 Power . | . . . . . . . . . Propulsion 2 | . . . 1 . . . . 1 Utility 4 | . . . 1 . . 2 . 1 Weapon . | . . . . . . . . . Parts Attached 115 | 7 11 5 32 7 7 1 21 24 Power 9 | 1 2 . 2 1 . . . 3 Engine 5 | 1 1 . 2 1 . . . . Core 4 | . 1 . . . . . . 3 Reactor . | . . . . . . . . . Propulsion 30 | 2 2 2 8 2 3 . 7 4 Treads 21 | 2 . . 7 2 3 . 6 1 Leg 6 | . . 2 1 . . . . 3 Wheel 3 | . 2 . . . . . 1 . Hover . | . . . . . . . . . Flight . | . . . . . . . . . Utility 38 | 2 3 . 8 3 3 1 8 10 Device 8 | 1 . . . . 1 1 2 3 Storage 4 | 1 2 . . 1 . . . . Processor 2 | . . . 1 . . . . 1 Hackware 5 | . . . . . . . . 5 Protection 19 | . 1 . 7 2 2 . 6 1 Artifact . | . . . . . . . . . Weapon 38 | 2 4 3 14 1 1 . 6 7 Energy Gun 10 | 1 . . 3 . . . 1 5 Energy Cannon 6 | . 1 . 2 1 . . 1 1 Ballistic Gun 10 | 1 . . 7 . . . 2 . Ballistic Cannon . | . . . . . . . . . Launcher 6 | . 2 1 1 . . . 2 . Special Weapon 1 | . . . . . . . . 1 Impact Weapon 4 | . 1 2 1 . . . . . Slashing Weapon . | . . . . . . . . . Piercing Weapon . | . . . . . . . . . Special Melee Weapon 1 | . . . . . 1 . . . Unidentified Prototypes 7 | . . . 4 . . . . 3 Parts Lost 28 | . 3 . 3 1 3 . 5 13 Power 3 | . 1 . . . . . . 2 Propulsion 6 | . . . 1 . 2 . 2 1 Utility 12 | . 1 . 1 1 1 . 3 5 Weapon 7 | . 1 . 1 . . . . 5 Highest Loss Streak 11 | . 1 . 1 1 3 . 2 11 To Critical Strikes . | . . . . . . . . . Average Backups 19 | 4 9 20 19 21 20 25 23 20 Power 1 | . 1 1 1 1 . . . 1 Propulsion 4 | 3 5 7 3 2 3 5 4 2 Utility 6 | . . 7 5 4 6 10 9 8 Weapon 6 | . 2 3 8 11 9 8 7 7 Tool/Special . | . . . . . . . . . Unused Backups 26 | . 5 . 8 . 1 . 4 8 Power . | . . . . . . . . . Propulsion 10 | . 3 . 3 . . . . 4 Utility 9 | . . . 2 . . . 4 3 Weapon 6 | . 2 . 3 . 1 . . . Tool/Special 1 | . . . . . . . . 1 Average Slot Usage (%) 93 | . 98 100 99 100 100 88 83 78 Engine 9 | . 8 14 11 11 11 9 9 1 Core 1 | . 4 . . . . . . 3 Treads 20 | . 24 . 23 33 33 27 21 13 Leg 6 | . . 27 9 . . . . 5 Wheel 2 | . 3 . . . . . 5 4 Device 4 | . 10 . . . . 7 6 12 Storage 10 | . 14 14 11 11 11 9 9 7 Processor 1 | . . . 6 . . . . . Protection 13 | . 3 14 15 22 22 18 13 7 Energy Gun 1 | . 5 . 1 . . . 1 3 Energy Cannon 1 | . 2 . 1 5 . . 1 5 Ballistic Gun 9 | . 3 . 16 13 17 17 11 . Launcher 1 | . 10 2 . . . . . . Impact Weapon 7 | . 6 25 3 3 3 . 3 3 Peak Build Rating 54 | 7 11 13 22 18 18 19 37 54 Average Rating 19 | 4 8 12 17 17 16 18 28 39 On Entrance 14 | . 7 10 13 16 18 18 19 32 Naked Turns . | . . . . . . . . . Heaviest Build 136 | 15 54 54 60 101 101 101 136 123 Greatest Support 60 | 40 40 26 60 60 60 60 60 60 Greatest Overweight (x) 11 | . 3 2 1 1 1 1 11 10 Average Overweight (x) 2 | . . 2 . . . 1 6 7 Largest Inventory Capacity 25 | 8 20 20 20 25 25 25 25 25 Average Capacity 20 | 6 11 20 20 23 21 25 25 25 Most Carried 25 | 7 20 20 20 22 25 25 25 25 Average Carried 19 | 5 9 19 19 21 20 24 24 22 Final Capacity 25 | 8 20 20 20 25 25 25 25 25 Final Carried 25 | 7 20 20 19 22 25 25 25 15 Class Distribution -------------------- 48% | Mutant 31% | Bothacker-Mutant 16% | Scavenger-Mutant 3% | Commander-Mutant Dominant Class ---------------- Mutant | -10/Materials Mutant | -10/Mines Mutant | -9/Materials Commander-Mutant | -9/Storage Scavenger-Mutant | -9/Garrison Bothacker-Mutant | -8/Materials Bothacker-Mutant | -8/Garrison Bothacker-Mutant | -7/Factory Resources | -11 -10 -10 -9 -9 -9 -8 -8 -7 ----------- Run | Yrd Mat Min Mat Sto Gar Mat Gar Fac Matter Collected 4133 | 291 480 226 871 267 617 . 874 507 Remotely . | . . . . . . . . . Salvage Created 5399 | 129 576 271 1384 222 886 . 1064 867 Parts 296 | 10 34 5 75 15 56 . 65 36 Haulers Intercepted 5 | . 2 . 3 . . . . . Recyclers Shooed . | . . . . . . . . . Parts Field Recycled . | . . . . . . . . . Retrieved Matter . | . . . . . . . . . Parts Self-Destructed . | . . . . . . . . . Prevented . | . . . . . . . . . Kills | -11 -10 -10 -9 -9 -9 -8 -8 -7 ------- Run | Yrd Mat Min Mat Sto Gar Mat Gar Fac Combat Hostiles Destroyed 131 | . 17 5 31 3 24 . 27 24 Melee 3 | . . 3 . . . . . . Guns 79 | . 3 . 29 1 19 . 18 9 Cannons 10 | . 1 . . 2 . . 1 6 AOE 35 | . 13 2 . . 5 . 7 8 Classes Destroyed 16 | 2 6 1 2 . . . 3 2 Worker 12 | . 1 3 5 1 . . . 2 Tunneler 4 | 2 1 1 . . . . . . Hauler 5 | . 2 . 3 . . . . . Recycler 5 | 1 1 2 . 1 . . . . Operator 3 | . 1 . 1 1 . . . . Watcher 2 | . 1 . 1 . . . . . Swarmer 27 | . 3 . 8 1 4 . 7 4 Cutter 3 | . . . . . . . 2 1 Grunt 62 | . 14 3 12 . 12 . 7 14 Brawler 5 | . . . 1 . 2 . 1 1 Sentry 24 | . . . 10 2 6 . 6 . Demolisher 2 | . . . . . . . 2 . Hunter 3 | . . . . . . . 2 1 Programmer 2 | . . . . . . . . 2 Heavy 1 | . . . . . . . . 1 Assembled 2 | . . 2 . . . . . . Best Kill Streak 7 | 2 4 2 7 2 6 . 7 7 Combat Bots Only 7 | . 4 2 6 1 6 . 7 6 Max Kills in Single Turn 4 | 1 3 1 2 2 4 . 3 4 Gunslinging . | . . . . . . . . . Exploded 4 | . 2 1 . . 4 . 3 3 Melee 1 | . . 1 . . . . . . Uniques/NPCs Destroyed . | . . . . . . . . . Combat | -11 -10 -10 -9 -9 -9 -8 -8 -7 -------- Run | Yrd Mat Min Mat Sto Gar Mat Gar Fac Hostile Shots Fired 781 | . 48 10 130 50 61 . 125 357 Missed 200 | . 12 1 30 15 15 . 22 105 Hits 581 | . 36 9 100 35 46 . 103 252 Melee 14 | . . . . . . . 2 12 Projectile 567 | . 36 9 100 35 46 . 101 240 AOE 14 | . . . . . . . 13 1 Critical Strikes 30 | . 1 . 1 2 3 . 7 16 Damage Taken 9371 | . 644 114 1243 468 663 . 1837 4402 Core 863 | . 177 23 138 24 39 . 60 402 Absorbed by Shields 98 | . . . . . . . . 98 Core Remaining (%) 64 | 100 . 20 . . 49 . 89 . Volleys Fired 326 | 7 41 3 71 21 42 . 61 80 Largest 2 | 2 2 2 2 2 2 . 2 2 Hottest 125 | 70 110 60 90 91 46 . 113 125 Shots Fired 575 | 14 61 6 140 38 82 . 119 115 Gun 448 | 14 15 . 138 26 80 . 104 71 Cannon 52 | . 16 . . 12 . . 6 18 Launcher 55 | . 30 6 2 . 2 . 9 6 Special 20 | . . . . . . . . 20 Kinetic 327 | 7 . . 116 26 80 . 98 . Thermal 87 | 7 31 . . 12 . . 6 31 Explosive 55 | . 30 6 2 . 2 . 9 6 Electromagnetic 86 | . . . 22 . . . 6 58 Robot Hit Streak 14 | 6 13 9 12 10 12 . 9 14 Robot Miss Streak 6 | 1 3 1 4 4 3 . 6 4 Penetration Max 1 | . . . . . . . 1 . Secondary Targets 13 | . . . 5 . 1 . 4 3 Max Gunslinging Chain 1 | . . . 1 . 1 . 1 1 Shots Hit Robots 441 | 9 42 16 119 24 76 . 77 78 Core Hits 291 | 4 41 7 63 10 41 . 56 69 Critical Kills 8 | . . 1 2 . 1 . 3 1 Critical Parts Destroyed 7 | . 1 1 . . 2 . 3 . Critical Strikes 17 | . 2 2 2 . 3 . 6 2 Burn 1 | . 1 . . . . . . . Meltdown 2 | . . . . . . . 1 1 Destroy 8 | . . . 2 . 3 . 3 . Corrupt 1 | . . . . . . . . 1 Smash 5 | . 1 2 . . . . 2 . Melee Attacks 146 | . 7 15 19 6 53 . 41 5 Impact 138 | . 7 15 19 6 45 . 41 5 Slashing . | . . . . . . . . . Piercing . | . . . . . . . . . Sneak Attacks 21 | . 3 7 3 . 8 . . . Combat Hostiles . | . . . . . . . . . Follow-up Attacks 2 | . . . 2 . . . . . Damage Inflicted 12736 | 123 2302 983 2375 435 1427 . 2349 2742 Guns 5489 | 123 143 . 1698 242 1109 . 1301 873 Cannons 793 | . 176 . . 184 . . 86 347 Explosions 4449 | . 1519 280 104 . 285 . 745 1516 Melee 1964 | . 464 703 547 . 33 . 217 . Ramming 41 | . . . 26 9 . . . 6 Kinetic 4027 | 35 . . 1430 242 1109 . 1211 . Thermal 1832 | 88 319 . 38 184 . . 86 1117 Explosive 3727 | . 1384 280 41 . 285 . 745 992 Electromagnetic 1145 | . 135 . 293 . . . 90 627 Impact 1964 | . 464 703 547 . 33 . 217 . Slashing . | . . . . . . . . . Piercing . | . . . . . . . . . Highest Corruption 8 | . 1 1 . . . . . 8 Average Corruption 1 | . 1 1 . . . . . 3 Corruption Purged . | . . . . . . . . . Corruption Blocked . | . . . . . . . . . Effects 24 | . 3 13 . . . . . 8 Message Errors 5 | . 1 3 . . . . . 1 Matter Fused 7 | . . 5 . . . . . 2 Heat Flow Errors 4 | . . 2 . . . . . 2 Energy Discharges 2 | . 1 1 . . . . . . Parts Rejected 3 | . . . . . . . . 3 Data Loss (minor) 3 | . 1 2 . . . . . . Overload Shots 3 | . . . . . . . . 3 Overflow Damage 806 | . 92 296 208 . . . 123 87 Projectiles . | . . . . . . . . . Explosions 118 | . 31 . . . . . . 87 Melee 688 | . 61 296 208 . . . 123 . Knockbacks 4 | . 1 2 . . . . 1 . Impact 4 | . 1 2 . . . . 1 . Kinetic . | . . . . . . . . . Secondary . | . . . . . . . . . Self-Inflicted Damage 501 | . 159 . . . . . 17 325 Shots 16 | . 10 . . . . . 1 5 Rammed 4 | . . . 2 2 . . . . Targets Rammed 5 | . . . 2 2 . . . 1 Kicked 1 | . . . . . . . . 1 Crushed . | . . . . . . . . . Highest Temperature 404 | 18 270 117 210 280 35 . 404 387 Average Temperature 86 | 9 90 43 43 85 11 . 149 88 Received Heat Transfer 3093 | . 195 74 390 153 273 . 558 1450 Effects 11 | . . . 1 1 . . 5 4 Shutdowns 1 | . . . . . . . . 1 Energy Bleed 4 | . . . 1 . . . 3 . Interference 4 | . . . . 1 . . . 3 Matter Decay 1 | . . . . . . . 1 . Damage (minor) 1 | . . . . . . . 1 . Siege Activations . | . . . . . . . . . Martial Activations . | . . . . . . . . . Shielding Activations . | . . . . . . . . . Robots Disrupted . | . . . . . . . . . Combat Hostiles . | . . . . . . . . . Robots Corrupted 8 | . . 4 3 . . . 1 . Combat Hostiles 2 | . . . 2 . . . . . Parts Fried 13 | . . 9 3 . . . . 1 Impact Corruptions 21 | . 2 11 5 . . . 3 . Robots Melted 3 | . 1 . . . . . 1 1 Combat Hostiles 2 | . . . . . . . 1 1 Parts Melted 7 | 1 4 . . . . . 1 1 Heat Transferred 2474 | 259 851 . 50 333 . . 148 833 Parts Sabotaged . | . . . . . . . . . Parts Stolen . | . . . . . . . . . Parts Stripped . | . . . . . . . . . Power Chain Reactions 4 | . . . 1 . . . . 3 Alert | -11 -10 -10 -9 -9 -9 -8 -8 -7 ------- Run | Yrd Mat Min Mat Sto Gar Mat Gar Fac Maximum Alert Level 4 | . 1 1 2 1 3 2 4 3 Low Security (%) 37 | 100 16 99 78 40 1 . . 16 Level 1 30 | . 83 . 15 59 29 8 40 13 Level 2 14 | . . . 5 . 22 91 13 48 Level 3 14 | . . . . . 45 . 32 20 Level 4 2 | . . . . . . . 13 . Level 5 . | . . . . . . . . . High Security . | . . . . . . . . . Max Security . | . . . . . . . . . Peak Influence 1183 | 5 353 208 528 385 1073 522 1183 794 Initial 620 | . . 111 . 98 180 522 248 620 Average 340 | . 232 24 122 218 629 455 655 480 Influence Increases 5821 | 15 805 147 1102 658 1003 . 1065 1026 Destroy 0b10 Robot/C 3020 | . 340 60 680 300 600 . 540 500 Destroy 0b10 Robot/NC 175 | 15 35 30 55 20 . . 10 10 Destroy Leader 518 | . 86 10 190 92 10 . 30 100 Allied During Kill 218 | . . . 10 142 48 . 6 12 Successful Hack 132 | . 26 . 27 44 35 . . . Select Force Hacks 90 | . 60 . 30 . . . . . Disable Machine 345 | . 75 30 60 45 . . 15 120 Anti-Garrison Action 650 | . . . . . 250 . 250 150 Destroy Structure 343 | . 108 17 20 . 60 . 79 59 Partial Spotted 15 | . . . . 15 . . . . Lose Combat Pursuer 315 | . 75 . 30 . . . 135 75 Influence Decreases 5047 | 15 518 434 867 616 207 691 264 1435 Entered New Map 1658 | . . 176 . 137 97 551 134 563 Time Decay 2261 | 15 488 258 492 346 . 140 . 522 Lost Part 280 | . 30 . 30 10 30 . 50 130 Lost Ally 335 | . . . 45 60 80 . 80 70 Purge Threat 513 | . . . 300 63 . . . 150 Squads Dispatched 18 | . 4 . 3 . . . . 11 Investigation 6 | . 3 . 2 . . . . 1 Extermination 3 | . . . . . . . . 3 Reinforcement 6 | . 1 . 1 . . . . 4 Assault 3 | . . . . . . . . 3 Garrison . | . . . . . . . . . Intercept . | . . . . . . . . . Searches Triggered . | . . . . . . . . . Construction Impeded 1 | . . . . . . . . 1 Haulers Reinforced . | . . . . . . . . . Active Scanning Responses . | . . . . . . . . . Cargo Convoy Interrupts . | . . . . . . . . . Stealth | -11 -10 -10 -9 -9 -9 -8 -8 -7 --------- Run | Yrd Mat Min Mat Sto Gar Mat Gar Fac Distress Signals 20 | . 5 1 3 2 . . 6 3 Communications Jammed . | . . . . . . . . . Distress Signals . | . . . . . . . . . Times Spotted 204 | . 31 5 50 15 23 . 34 46 Peak Tracking Total 13 | . 5 2 7 4 4 . 6 13 Tactical Retreats 12 | . 3 . 2 . . . 5 2 Traps | -11 -10 -10 -9 -9 -9 -8 -8 -7 ------- Run | Yrd Mat Min Mat Sto Gar Mat Gar Fac Traps Triggered 15 | . 2 . 1 . 1 . 11 . Indirectly . | . . . . . . . . . Trap Hack Attempts . | . . . . . . . . . Triggered . | . . . . . . . . . Disarmed 4 | . . . . 4 . . . . Reprogrammed . | . . . . . . . . . Reused . | . . . . . . . . . Traps Extracted . | . . . . . . . . . Installed . | . . . . . . . . . Triggered . | . . . . . . . . . Machines | -11 -10 -10 -9 -9 -9 -8 -8 -7 ---------- Run | Yrd Mat Min Mat Sto Gar Mat Gar Fac Machines Disabled 28 | . 5 2 4 3 3 . 2 9 Max in Single Turn 6 | . 2 1 1 1 1 . 1 6 Garrison Access 1 | . . . . . . . . 1 Garrison Relay 4 | . . . . . 3 . 1 . Machines Repaired . | . . . . . . . . . Machines Dismantled . | . . . . . . . . . Machines Sabotaged . | . . . . . . . . . Overloaded Fab Kills . | . . . . . . . . . Hacking | -11 -10 -10 -9 -9 -9 -8 -8 -7 --------- Run | Yrd Mat Min Mat Sto Gar Mat Gar Fac Machines Accessed 32 | . 7 . 10 7 4 1 1 2 Terminals 27 | . 5 . 9 6 4 . 1 2 Fabricators . | . . . . . . . . . Repair Stations . | . . . . . . . . . Recycling Units 3 | . 2 . 1 . . . . . Scanalyzers . | . . . . . . . . . Garrison Access 2 | . . . . 1 . 1 . . Total Hacks 89 | . 21 . 30 27 6 1 2 2 Successful 55 | . 12 . 19 20 3 1 . . Failed 32 | . 8 . 10 7 3 . 2 2 Catastrophic 8 | . 1 . 4 . 1 . . 2 Database Lockouts 2 | . 1 . 1 . . . . . Manual 59 | . 20 . 23 14 1 . . 1 Terminals 84 | . 19 . 29 26 6 . 2 2 Fabricators . | . . . . . . . . . Repair Stations . | . . . . . . . . . Recycling Units 3 | . 2 . 1 . . . . . Scanalyzers . | . . . . . . . . . Garrison Access 2 | . . . . 1 . 1 . . Terminal Hacks 23 | . 3 . 8 9 3 . . . Robot Schematic 1 | . . . 1 . . . . . Robot Analysis 3 | . 2 . . 1 . . . . Prototype ID Bank 4 | . . . 2 2 . . . . Open Door 2 | . . . . 1 1 . . . Branch Access Points 1 | . 1 . . . . . . . Emergency Access Points 1 | . . . . 1 . . . . Alert Level 1 | . . . 1 . . . . . Unreport Threat 3 | . . . 2 1 . . . . Locate Traps 2 | . . . 1 1 . . . . Disarm Traps 1 | . . . . 1 . . . . Hauler Manifests 1 | . . . 1 . . . . . Registered Components 1 | . . . . 1 . . . . Garrison Registry 1 | . . . . . 1 . . . Patrol Navigation 1 | . . . . . 1 . . . Fabricator Hacks . | . . . . . . . . . Repair Station Hacks . | . . . . . . . . . Recycling Unit Hacks . | . . . . . . . . . Scanalyzer . | . . . . . . . . . Garrison Access Hacks 2 | . . . . 1 . 1 . . Unlock Access 2 | . . . . 1 . 1 . . Unauthorized Hacks 30 | . 9 . 11 10 . . . . Terminals 27 | . 7 . 10 10 . . . . Botnet 10 | . 2 . 3 5 . . . . Operators 2 | . . . 2 . . . . . Skim 15 | . 5 . 5 5 . . . . Fabricators . | . . . . . . . . . Repair Stations . | . . . . . . . . . Recycling Units 3 | . 2 . 1 . . . . . Tunnel 3 | . 2 . 1 . . . . . Scanalyzers . | . . . . . . . . . Garrison Access . | . . . . . . . . . Data Cores Recovered 1 | . 1 . . . . . . . Used . | . . . . . . . . . Hacking Detections 23 | . 5 . 9 4 2 . 1 2 Full Trace Events 1 | . . . . . . . . 1 Feedback Events . | . . . . . . . . . Feedback Blocked . | . . . . . . . . . Robot Schematics Acquired 1 | . . . 1 . . . . . Robots Built . | . . . . . . . . . Authchips . | . . . . . . . . . Time . | . . . . . . . . . Total Robot Build Rating . | . . . . . . . . . Part Schematics Acquired . | . . . . . . . . . Parts Built . | . . . . . . . . . Authchips . | . . . . . . . . . Time . | . . . . . . . . . Total Part Build Rating . | . . . . . . . . . Parts Repaired . | . . . . . . . . . Time . | . . . . . . . . . Parts Recycled . | . . . . . . . . . Recycled Matter . | . . . . . . . . . Retrieved Matter . | . . . . . . . . . Retrieved Components . | . . . . . . . . . Parts Scanalyzed . | . . . . . . . . . Part Schematics Acquired . | . . . . . . . . . Parts Damaged . | . . . . . . . . . Bothacking | -11 -10 -10 -9 -9 -9 -8 -8 -7 ------------ Run | Yrd Mat Min Mat Sto Gar Mat Gar Fac Used RIF Installer 3 | . . . . . 2 . 1 . Command Fork 1 | . . . . . 1 . . . Program Shield 1 | . . . . . . . 1 . Robots Hacked 8 | . . . . . . . . 8 Non-combat 1 | . . . . . . . . 1 Combat 7 | . . . . . . . . 7 Robot Hacks Applied 11 | . . . . . . . . 11 purge_threat 1 | . . . . . . . . 1 find_garrison 2 | . . . . . . . . 2 amplify_resonance 1 | . . . . . . . . 1 overwrite_iff 2 | . . . . . . . . 2 formatsys_low 1 | . . . . . . . . 1 formatsys_high 4 | . . . . . . . . 4 Relay Couplers Released 18 | . . . . . 12 . 5 1 Machine Destruction 18 | . . . . . 12 . 5 1 Attached 5 | . . . . . . . . 5 Fabnet Peak Effective % . | . . . . . . . . . Robots Rewired 2 | . . . . . 2 . . . Allies Hacked . | . . . . . . . . . Hacks Repelled . | . . . . . . . . . Allies | -11 -10 -10 -9 -9 -9 -8 -8 -7 -------- Run | Yrd Mat Min Mat Sto Gar Mat Gar Fac Total Allies 26 | . . 4 . 10 4 . . 8 Largest Group 10 | . . 4 3 10 4 4 4 5 Highest-Rated Group 104 | . . 71 40 88 71 71 71 104 Highest-Rated Ally 32 | . . 31 16 16 31 31 31 32 Total Orders 4 | . . . . 2 2 . . . STAY 2 | . . . . 1 1 . . . FOLLOW 2 | . . . . 1 1 . . . Ally Attacks 158 | . . 1 24 58 36 . 3 36 Total Damage 1697 | . . 20 300 449 369 . 71 488 Kills 28 | . . 1 4 14 6 . . 3 Allies Corrupted . | . . . . . . . . . Allies Melted . | . . . . . . . . . Intel | -11 -10 -10 -9 -9 -9 -8 -8 -7 ------- Run | Yrd Mat Min Mat Sto Gar Mat Gar Fac Active Infowar (turns) 2634 | 12 1134 . . . 1 235 730 522 Optics 1 | . . . . . . . . 1 Structural 1 | . . . . . 1 . . . Seismic 2632 | 12 1134 . . . . 235 730 521 Robot Analysis Total 3 | . 2 . . 1 . . . . Derelict Logs Recovered 2 | . . 2 . . . . . . Drone Launches . | . . . . . . . . . Drone Recoveries . | . . . . . . . . . Exploration | -11 -10 -10 -9 -9 -9 -8 -8 -7 ------------- Run | Yrd Mat Min Mat Sto Gar Mat Gar Fac Turns Passed 11683 | 184 1537 1819 1973 817 1527 283 2088 1455 Spaces Moved 4699 | 94 855 629 901 330 678 35 705 472 Core 3 | 3 . . . . . . . . Treads 2819 | 91 724 . 669 330 678 35 292 . Legs 999 | . . 626 232 . . . . 141 Wheels 878 | . 131 3 . . . . 413 331 Hover . | . . . . . . . . . Flight . | . . . . . . . . . Fastest Speed 50 | 50 120 120 160 160 160 240 225 225 Average Speed 200 | 156 157 259 167 202 175 240 240 238 Slowest Speed 470 | 160 240 260 240 240 240 240 400 470 Overloaded Moves . | . . . . . . . . . Propulsion Burnouts . | . . . . . . . . . Robots Hopped . | . . . . . . . . . Potential Cave-ins . | . . . . . . . . . Cave-ins Triggered . | . . . . . . . . . Exploration Rate (%) 56 | 8 96 96 85 45 71 4 81 20 Regions Visited 8 Branch Regions 2 Pre-discovered Areas 7 | . 3 2 1 1 . . . . Known Exits Taken 5 | . 1 1 1 1 . 1 . . Unknown Exits Taken 1 | 1 . . . . . . . . Scrap Searched 1 | . . 1 . . . . . . Spaces Dug 54 | . 1 1 2 . 24 . 19 7 Terrain Destroyed 293 | . 105 25 24 . 25 . 47 67 Melee 43 | . 1 1 2 . 22 . 14 3 Projectile 7 | . . . . . . . 3 4 AOE 243 | . 104 24 22 . 3 . 30 60 Terrain Rammed . | . . . . . . . . . Walls Destroyed . | . . . . . . . . . Machines Disabled . | . . . . . . . . . Actions | -11 -10 -10 -9 -9 -9 -8 -8 -7 --------- Run | Yrd Mat Min Mat Sto Gar Mat Gar Fac Total 6163 | 114 972 786 1199 429 846 234 906 677 Wait 553 | . 12 130 99 47 20 196 2 47 Move 4692 | 93 854 628 900 330 677 34 704 472 Hop . | . . . . . . . . . Pick Up 110 | 7 26 3 27 6 15 1 14 11 Fast Attach 32 | 7 1 . 8 . . . 8 8 Attach 28 | . 3 . 5 1 3 1 3 12 Detach 1 | . . . . . . . 1 . Swap 142 | . 15 5 33 10 26 2 26 25 Drop 107 | . 13 3 37 6 10 . 22 16 Fire 326 | 7 41 3 71 21 42 . 61 80 Melee 143 | . 7 14 17 6 53 . 41 5 Ram . | . . . . . . . . . Kick 1 | . . . . . . . . 1 Crush 4 | . . . 2 2 . . . . Escape Stasis 24 | . . . . . . . 24 . Rewire . | . . . . . . . . . Trap . | . . . . . . . . . Miscellaneous . | . . . . . . . . . Route ------- -11/Scrapyard -10/Materials (discovered 6 exits: *Mat x3 / *Min x2 / *Sub) -10/Mines (discovered 4 exits: *Mat x2 / [*Exi] / Sub) -9/Materials (discovered 6 exits: *Mat x3 / *Min x2 / *Sto) -9/Storage (discovered 3 exits: *Mat / Rec / Gar) -9/Garrison (discovered 3 exits: *Mat x3) -8/Materials (discovered 2 exits: Fac / Gar) -8/Garrison (discovered 3 exits: *Fac x3) -7/Factory History --------- Turn | Location | Event 8 | -11/Scrapyard | Discovered new exit (range 15) 185 | -11/Scrapyard | Entered Materials 186 | -10/Materials | Met a group of wandering Federalists 211 | -10/Materials | Discovered new exit (range 13) 300 | -10/Materials | Build established: Mutant 344 | -10/Materials | Discovered new exit (range 15) 680 | -10/Materials | Core integrity fell below 50% 850 | -10/Materials | Discovered new exit (range 6) 926 | -10/Materials | Discovered new exit (range 11) 1342 | -10/Materials | Discovered new exit (range 10) 1406 | -10/Materials | Discovered new exit (range 14) 1503 | -10/Materials | Central database locked down 1503 | -10/Materials | Identified exit to Mines 1593 | -10/Materials | Learned 2 Storage zone layouts 1623 | -10/Materials | Identified exit to Subcaves 1623 | -10/Materials | Identified exit to Materials 1652 | -10/Materials | Learned Storage stockpile data 1654 | -10/Materials | Learned location of 2 exits from Mines 1656 | -10/Materials | Learned Storage stockpile data 1694 | -10/Materials | Learned 2 Storage zone layouts 1722 | -10/Materials | Entered Mines 1822 | -10/Mines | Discovered exit to Materials (range 3) 2038 | -10/Mines | Deemed a non-threat by the Exiles lab entrance 2038 | -10/Mines | Discovered new exit (range 5) 2096 | -10/Mines | Excavation squad dispatched 2096 | -10/Mines | A large section of the Mines collapsed 2665 | -10/Mines | Learned location of Zion (-6) 2756 | -10/Mines | Found a Scrap Suit stashed away for nefarious purposes 3041 | -10/Mines | Assisted by bots powering up and referring to "LRC-V3" 3213 | -10/Mines | Received a Mining Laser from a helpful Derelict 3541 | -10/Mines | Entered Materials 3541 | -9/Materials | Accompanied by 3 allies 3541 | -9/Materials | Evolved 2 slots: Propulsion x1, Utility x1 3542 | -9/Materials | Identified exit to Mines 4019 | -9/Materials | Discovered new exit (range 12) 4047 | -9/Materials | Identified exit to Materials 4833 | -9/Materials | Discovered exit to Materials (range 12) 5018 | -9/Materials | Learned Storage garrison access intel 5034 | -9/Materials | Identified exit to Storage 5034 | -9/Materials | Learned location of 1 exit from Materials 5038 | -9/Materials | Learned Storage security intel 5040 | -9/Materials | Loaded intel: 18 interactive machine locations 5041 | -9/Materials | Learned Materials interactive machine intel 5042 | -9/Materials | Learned Storage stockpile data 5054 | -9/Materials | Learned Storage emergency access door positions 5188 | -9/Materials | Central database locked down 5514 | -9/Materials | Entered Storage 5515 | -9/Storage | Identified exit to Recycling 5520 | -9/Storage | Loaded intel: 1 garrison access location 5542 | -9/Storage | Assisted by bots powering up and referring to "LRC-V3" 5789 | -9/Storage | Lost 3 allies 5853 | -9/Storage | Build established: Commander-Mutant 6033 | -9/Storage | Lost 3 allies 6092 | -9/Storage | Learned 4 Recycling zone layouts 6134 | -9/Storage | Learned 4 Materials zone layouts 6186 | -9/Storage | Learned Recycling recycling unit intel 6200 | -9/Storage | Learned Storage stockpile data 6203 | -9/Storage | Learned Materials trap positions 6204 | -9/Storage | Learned Storage emergency access door positions 6207 | -9/Storage | Learned location of Mines (-9) 6218 | -9/Storage | Learned Materials repair station intel 6241 | -9/Storage | Learned Materials stockpile data 6289 | -9/Storage | Build established: Scavenger-Mutant 6331 | -9/Storage | Identified exit to Garrison 6331 | -9/Storage | Entered Garrison 6331 | -9/Garrison | Accompanied by 4 allies 6355 | -9/Garrison | Triggered checkpoint 6395 | -9/Garrison | Triggered checkpoint 6761 | -9/Garrison | Triggered checkpoint 6799 | -9/Garrison | Triggered checkpoint 6843 | -9/Garrison | Lost 4 allies 6993 | -9/Garrison | Installed Relay Interface Framework 7016 | -9/Garrison | Discovered exit to Materials (range 10) 7023 | -9/Garrison | Triggered checkpoint 7053 | -9/Garrison | Triggered checkpoint 7083 | -9/Garrison | Garrison Relay disabled 7113 | -9/Garrison | Lost 3 parts (2n1u) 7118 | -9/Garrison | Discovered exit to Materials (range 103) 7118 | -9/Garrison | Discovered exit to Materials (range 12) 7118 | -9/Garrison | Discovered exit to Materials (range 55) 7194 | -9/Garrison | Rescued a captive Derelict 7202 | -9/Garrison | Rescued a captive Derelict 7331 | -9/Garrison | Triggered checkpoint 7353 | -9/Garrison | Triggered checkpoint 7418 | -9/Garrison | Expanded RIF knowledge: Command Fork 7493 | -9/Garrison | Triggered checkpoint 7503 | -9/Garrison | Core integrity fell below 50% 7524 | -9/Garrison | Garrison Relay disabled 7572 | -9/Garrison | Garrison Relay disabled 7826 | -9/Garrison | Build established: Bothacker-Mutant 7858 | -9/Garrison | Entered Materials 7858 | -8/Materials | Accompanied by 4 allies 7858 | -8/Materials | Evolved 2 slots: Utility x2 7859 | -8/Materials | Identified exit to Factory 7861 | -8/Materials | Loaded intel: 15 trap records 7863 | -8/Materials | Loaded intel: 19 interactive machine locations 7864 | -8/Materials | Loaded intel: 2 repair station locations 7890 | -8/Materials | Identified exit to Garrison 8141 | -8/Materials | Entered Garrison 8141 | -8/Garrison | Accompanied by 4 allies 8219 | -8/Garrison | Lost 4 allies 8251 | -8/Garrison | Triggered checkpoint 8475 | -8/Garrison | Triggered checkpoint 8567 | -8/Garrison | Triggered checkpoint 8669 | -8/Garrison | Triggered checkpoint 8727 | -8/Garrison | Triggered checkpoint 8780 | -8/Garrison | Discovered exit to Factory (range 12) 8991 | -8/Garrison | Triggered checkpoint 9045 | -8/Garrison | Destroyed 7 combat bots 9345 | -8/Garrison | Discovered exit to Factory (range 11) 9381 | -8/Garrison | Triggered checkpoint 9753 | -8/Garrison | Expanded RIF knowledge: Program Shield 9809 | -8/Garrison | Discovered exit to Factory (range 11) 9875 | -8/Garrison | Triggered checkpoint 9903 | -8/Garrison | Garrison Relay disabled 10229 | -8/Garrison | Entered Factory 10229 | -7/Factory | Evolved 2 slots: Propulsion x1, Utility x1 11104 | -7/Factory | Lost 3 allies 11426 | -7/Factory | Lost 11 parts (1p1n4u5w) 11429 | -7/Factory | First assault squad dispatched 11496 | -7/Factory | Build established: Mutant 11629 | -7/Factory | Core integrity fell below 50% 11684 | -7/Factory | Self-destructed Last Messages --------------- 11544_ G-47 Trooper destroyed. 11546_ Acquired 49 matter. 11547_ K-01 Serf collects debris. 11568_ System corrupted: Imp. Heat Sink rejected. 11574_ G-47 Trooper destroyed. 11577_ K-01 Serf collects debris. 11579_ Acquired 81 matter. 11580_ K-01 Serf collects debris. 11593_ Critical hit (Burn: +37). 11596_ R-06 Scavenger collects Imp. Heat Sink. 11613_ K-01 Serf cleans the TF Node. 11633_ Critical hit (Burn: +37). 11663_ Manufacturing Mainframe disabled. 11664_ ALERT: Potential suspicious activity detected, Programmers report to Factory Zone 8O. 11675_ Critical hit (Burn: +37). 11676_ System corrupted: Cld. Particle Cannon rejected. Map ----- +----------------------------------------------------+ | #""" #?????????????????????????????????????????? | | #""" #?????????????????????????????????????????? | | # #?????????????????????????????????????????? | | ########?????????????????????????????????????????? | | ?????????????????????????????????????????????????? | | ?????????????????????????????????????????????????? | | ?????????????????????????????????????????????????? | | ?????????????????????????????????????????????????? | | ?????????????????????????????????????????????????? | | ?????????????????????????????????????????????????? | | ?????????????????????????????????????????????????? | | ?????????????????????????????????????????????????? | | ?????????????????????????????????????????????????? | | ?????????????????????????????????????????????????? | | ?????????????????????????????????????????????????? | | ?????????????????????????????????????????????????? | | ?????????????????????????????????????????????????? | | ?????????????????????????????????????????????????? | | ?????????????????????????????????????????????????? | | ?????????????????????????????????????????????????? | | ?????????????????????????????????????????????????? | | ?????????????????????????????????????????????????? | | ????????????????????????##########???????????????? | | ????????????????????????# #???????????????? | | ????????????????????????# #???????????????? | | ?????########+######??###@ #???????????????? | | ?????# #### + #???????????????? | | ?????# # #???????????????? | | ?????+ """ ]# #???????????????? | | ?????# """ # #???????????????? | | ???????# """ # #???????????????? | | ???????# # #???????????????? | | ???????# ##########???????????????? | | ???????# ###/#######?????????????????????? | | ???????# + #?????????????????????? | | ???#+#?# ##### # """" #?????????????????????? | | ???#^### #???# # """ ??????????????????????? | | ???# #???# # [ """" #?????????????????????? | | ???# ######## # """"???????????????????????? | | ???# # [ # # / ???????????????????????? | | #### + + + ??????????????????????? | | ## # """ ### ??????????????????????? | | ## # """ #?###########?????????????????????? | | #?""" #?????????????????????????????????? | | ]##### #? #?????????????????????????????????? | | #???# #??###+??????????????????????????????????? | | ###???#+#????????????????????????????????????????? | | ???? ????????????????????????????????????????? | | """"??"""????????????????????????????????????????? | | """" """"????????????????????????????????????????? | +----------------------------------------------------+ Best States ------------- Heat Dissipation 48 Energy Generation 17 Energy Capacity 300 Matter Stores 300 Matter Capacity 300 Sight Range 16 Terrain Scan Density 10 Armor Coverage 1200 Weapon Cycling 15 Evasion (%) 40 Recoil Reduction 3 Relay Coupler Types 2 Relay Coupler Value 29 Item Schematics ----------------- None Robot Schematics ------------------ M-13 Machinist | -9/Materials | Hacked Fabricated ------------ Nothing Repaired ---------- Nothing Alien Tech Used ----------------- None Achievements -------------- None Challenges ------------ None Game ------ Seed BarrageSlugMonowheel Manual? 0 Play Time 01:22:19 Cumulative 598.2 hours Start 2025.05.18 @ 21:32:38 End 2025.05.18 @ 22:59:40 Sessions 1 Manual Loads 0 Difficulty Rogue Special Mode None Game No. 134 Rogue 134 Adventurer 0 Explorer 0 Win Type - Total 35 Types 10/3/7/1/1/1/8/2/1/1 Lore% 68 Gallery% 81 Achievement% 79 Wizard Run 0 Options --------- Layout 1 ASCII 0 Keyboard 0 Movement Mouse Keybinds 0 Fullscreen 1 Font 24/Smallcaps Map View 50x35 Zoom Use 0% Tactical HUD 1 Map Filters NONE Filters NONE Steam 1 RUN: eccf4abf-b7cb-4499-8cb3-537609c7a502